fUST/lending_fUST_20240214
["ID","MTS","AMOUNT","RATE_DAILY","PERIOD"]
[313936863,1707840455934,-523.89008641,0.0001979,2]
[313936864,1707840455955,-3199.10991359,0.0001979,2]
[313936869,1707840523733,-154.87609912,0.00019789,2]
[313936870,1707840523756,-154.87609912,0.00019789,3]
[313936871,1707840523778,-878.35880558,0.00019789,2]
[313936872,1707840523798,-2915.97838947,0.0001979,2]
[313936873,1707840523820,-2000.0,0.00019791,9]
[313936874,1707840523842,-42.91060671,0.0002,2]
[313936884,1707840570113,-6146.70626066,0.000199,2]
[313936885,1707840570135,-19.65458668,0.0002,2]
[313936886,1707840570156,-154.87609912,0.00022798,2]
[313936887,1707840570177,-250.0,0.00022799,2]
[313936888,1707840570199,-3547.1013321,0.0002325,2]
[313936889,1707840570220,-515.612266,0.00023584,2]
[313936890,1707840570242,-1000.0,0.0002376,2]
[313936891,1707840570262,-1000.0,0.00023778,2]
[313936892,1707840570284,-1000.0,0.00023797,2]
[313936893,1707840570306,-1000.0,0.00023804,2]
[313936894,1707840570327,-1000.0,0.00023811,2]
[313936895,1707840570347,-1000.0,0.00023818,2]
[313936896,1707840570370,-1000.0,0.00023822,2]
[313936897,1707840570393,-1000.0,0.00023875,2]
[313936898,1707840570415,-1000.0,0.00023886,2]
[313936899,1707840570436,-1000.0,0.00023896,2]
[313936900,1707840570457,-1000.0,0.00023912,2]
[313936901,1707840570479,-1000.0,0.00023938,2]
[313936902,1707840570501,-984.6256667,0.0002394,2]
[313936903,1707840570525,-1000.0,0.00023942,2]
[313936904,1707840570547,-1000.0,0.00023947,2]
[313936905,1707840570568,-1000.0,0.0002395,2]
[313936906,1707840570588,-1000.0,0.00023971,2]
[313936907,1707840570611,-1000.0,0.00023973,2]
[313936908,1707840570631,-1000.0,0.00023975,2]
[313936909,1707840570653,-1000.0,0.00023977,2]
[313936910,1707840570674,-1000.0,0.00023978,2]
[313936911,1707840570694,-1000.0,0.00023981,2]
[313936912,1707840570714,-1000.0,0.00024012,2]
[313936913,1707840570734,-981.63485637,0.0002403,2]
[313936914,1707840570761,-733.77368096,0.00024033,2]
[313936915,1707840570785,-220.13210428,0.00024033,2]
[313936916,1707840570807,-78.21545731,0.00024412,7]
[313936979,1707840632161,-200.0,0.00025479,2]
[313936982,1707840632173,-153.39601061,0.00026482,3]
[313936993,1707840632291,-169.405118,0.00026727,2]
[313936994,1707840632330,-257.806133,0.00028353,2]
[313936995,1707840632340,-154.87609912,0.00028798,4]
[313936996,1707840632350,-4237.29615688,0.00029379,2]
[313936997,1707840632363,-1941.27527289,0.00029379,2]
[313936998,1707840632375,-2888.81417436,0.00029379,2]
[313937028,1707840638362,-3092.91301041,0.00029379,2]
[313937050,1707840641670,-1316.65,0.00029379,2]
[313937052,1707840641687,-2012.96950912,0.00029379,2]
[313937099,1707840643308,-1382.0,0.00029379,2]
[313937135,1707840646592,-0.18427981,0.00028798,4]
[313937136,1707840646606,-154.69181931,0.00028798,4]
[313937137,1707840646615,-444.45767074,0.00029379,2]
[313937138,1707840646628,-7583.6242056,0.00029379,2]
[313937139,1707840646637,-669.5626577,0.00029576,2]
[313937140,1707840646647,-153.39601059,0.00029962,4]
[313937141,1707840646656,-500.0,0.0003,15]
[313937142,1707840646667,-200.0,0.00030846,15]
[313937143,1707840646676,-451.5360075,0.0003126,2]
[313937144,1707840646688,-306.0,0.0003126,2]
[313937145,1707840646698,-4042.532543,0.0003144,2]
[313937146,1707840646708,-253.90909074,0.00031676,2]
[313937280,1707841832797,-154.8915759,0.0002276,2]
[313937282,1707841832806,-154.8915759,0.00022761,2]
[313937284,1707841832816,-280.94108593,0.00022761,2]
[313937286,1707841832825,-169.405118,0.00022762,2]
[313937288,1707841832834,-523.89008641,0.00023925,2]
[313937289,1707841832843,-232.66777038,0.00023925,2]
[313937291,1707841832854,-3818.34769459,0.00023938,2]
[313937294,1707841832863,-571.7966515,0.00023962,2]
[313937295,1707841832873,-687.66321167,0.00024065,2]
[313937297,1707841832882,-206.2989635,0.00024065,2]
[313937299,1707841832891,-440.07706158,0.00024066,2]
[313937301,1707841832901,-6786.37876354,0.00024258,2]
[313937304,1707841832917,-3985.38958654,0.00024258,2]
[313937306,1707841832929,-14128.23164992,0.00024258,2]
[313937308,1707841832938,-7965.0731739,0.00024715,2]
[313937310,1707841832947,-1245.2446068,0.00025105,2]
[313937312,1707841832958,-250.0,0.0002518,2]
[313937314,1707841832967,-257.806133,0.00025238,2]
[313937316,1707841832975,-154.87609912,0.00027174,2]
[313937318,1707841832984,-612.9064122,0.00027279,2]
[313937320,1707841832994,-154.87609912,0.00028798,4]
[313937322,1707841833003,-159.52100936,0.00030011,7]
[313937323,1707841833012,-335.0478613,0.00030878,2]
[313937325,1707841833023,-307.6104457,0.00031178,2]
[313937327,1707841833032,-306.0,0.00031233,2]
[313937329,1707841833042,-200.079134,0.00031233,2]
[313937331,1707841833051,-153.0,0.00031342,2]
[313937333,1707841833060,-189.16751338,0.00031576,2]
[313937335,1707841833070,-152.29571745,0.000316,2]
[313937337,1707841833080,-972.08,0.00031666,3]
[313937339,1707841833089,-810.06,0.00031666,3]
[313937341,1707841833098,-675.05,0.00031666,3]
[313937343,1707841833107,-222.06960045,0.00031676,2]
[313937345,1707841833116,-27790.03294514,0.00031676,14]
[313937390,1707841838411,-200.0,0.0002547,7]
[313937391,1707841838422,-280.0,0.00028017,15]
[313937392,1707841838432,-391.0,0.00030819,15]
[313937393,1707841838441,-496.823262,0.00031676,14]
[313937394,1707841838464,-7481.10330569,0.00031676,14]
[313937395,1707841838476,-957.02959331,0.00031676,14]
[313937462,1707841841711,-1511.89299392,0.00031676,14]
[313937463,1707841841723,-1200.0,0.00031676,14]
[313937482,1707841843477,-2607.15217086,0.00031676,14]
[313937502,1707841846509,-500.0,0.00031676,14]
[313937511,1707841846632,-8846.96822588,0.00031676,14]
[313937512,1707841846642,-1360.1574461,0.00031676,5]
[313937513,1707841846652,-154.86062544,0.00031676,4]
[313937514,1707841846661,-306.0,0.000317,2]
[313937515,1707841846670,-74774.47083621,0.000319,2]
[313937516,1707841846680,-309.73820307,0.0003199,6]
[313937517,1707841846689,-500.0,0.00031997,7]
[313937518,1707841846700,-106.4545668,0.00031997,7]
[313937630,1707843032679,-212.79441474,0.00028801,2]
[313937632,1707843032688,-5282.95746006,0.00028801,2]
[313937634,1707843032699,-154.87609912,0.00028802,2]
[313937636,1707843032709,-6115.08830306,0.00028802,2]
[313937638,1707843032719,-1997.19860237,0.00028804,2]
[313937640,1707843032732,-24900.0,0.00028813,2]
[313937642,1707843032741,-153.39601059,0.00029597,4]
[313937644,1707843032750,-164.22477025,0.00029697,2]
[313937646,1707843032759,-1042.93672257,0.000298,2]
[313937648,1707843032769,-3343.77753188,0.0003,2]
[313937650,1707843032778,-10647.09593171,0.0003,4]
[313937652,1707843032788,-200.0,0.0003024,15]
[313937654,1707843032798,-464.90740833,0.00031037,4]
[313937656,1707843032810,-5000.0,0.00031038,10]
[313937658,1707843032820,-400.2930112,0.0003126,2]
[313937660,1707843032830,-153.0,0.0003126,2]
[313937662,1707843032840,-153.0,0.0003126,2]
[313937664,1707843032850,-200.1465056,0.0003126,2]
[313937666,1707843032859,-153.0,0.0003126,2]
[313937668,1707843032869,-400.0,0.00031581,2]
[313937670,1707843032879,-271.29,0.0003179,3]
[313937672,1707843032889,-517.33,0.0003179,3]
[313937674,1707843032898,-431.11,0.0003179,3]
[313937676,1707843032910,-359.26,0.0003179,3]
[313937678,1707843032920,-27607.44129836,0.000318,2]
[313937680,1707843032928,-189.16751336,0.00031898,2]
[313937682,1707843032938,-217.42426648,0.00031998,4]
[313937684,1707843032948,-176.03080422,0.00031998,4]
[313937686,1707843032957,-310.35249851,0.00031998,7]
[313937688,1707843032967,-155.43268074,0.00031998,4]
[313937690,1707843032976,-588.95878367,0.00031998,4]
[313937692,1707843032985,-491.27110707,0.00031998,4]
[313937694,1707843032994,-2760.6065354,0.00031998,4]
[313937696,1707843033004,-154.98446131,0.00031998,4]
[313937698,1707843033013,-166.17702211,0.00031998,4]
[313937700,1707843033023,-1282.91996659,0.00031998,4]
[313937702,1707843033033,-246.09121054,0.00031998,4]
[313937704,1707843033042,-248.26466745,0.00031998,4]
[313937706,1707843033051,-155.06821385,0.00031998,4]
[313937708,1707843033061,-537.66917544,0.00031998,4]
[313937710,1707843033071,-154.87609912,0.00031998,4]
[313937712,1707843033081,-154.87609912,0.00031998,4]
[313937714,1707843033091,-154.95355109,0.00031998,4]
[313937716,1707843033100,-155.27111545,0.00031998,4]
[313937718,1707843033110,-551.90138278,0.00031998,4]
[313937720,1707843033119,-209.65955535,0.00031998,4]
[313937722,1707843033129,-11558.84940842,0.00031998,2]
[313937724,1707843033140,-690.59003309,0.00031999,4]
[313937726,1707843033149,-18973.76143666,0.00031999,4]
[313937728,1707843033160,-250.0,0.00031999,2]
[313937730,1707843033170,-5502.74921735,0.00032,15]
[313937883,1707843038637,-7699.12521122,0.00032,15]
[313937891,1707843038754,-1352.77872756,0.00032,15]
[313937893,1707843038766,-1068.32,0.00032,15]
[313937906,1707843042713,-299.38,0.0003199,3]
[313937907,1707843042724,-13487.939439,0.00032,15]
[313937908,1707843042736,-339.64638281,0.00032,15]
[313937925,1707843046662,-347.61871166,0.00032,15]
[313937970,1707843977461,-155.54015347,0.00019998,2]
[313937971,1707843977496,-1738.45984653,0.00019999,2]
[313937972,1707843987083,310.0,0.00029,120]
[313937978,1707844050026,-154.92253873,0.00018185,2]
[313937979,1707844050047,-212.79441474,0.00018186,2]
[313937980,1707844050068,-280.94108593,0.00018186,2]
[313937981,1707844050088,-175.87607828,0.00018187,2]
[313937982,1707844050109,-523.89008641,0.00018187,2]
[313937983,1707844050128,-6115.08830306,0.00018187,2]
[313937984,1707844050149,-1949.02119926,0.00018187,2]
[313937985,1707844050171,-247.46530507,0.00018187,2]
[313937986,1707844050190,-718.7552593,0.00018187,2]
[313937987,1707844050210,-154.92253873,0.00018187,2]
[313937988,1707844050230,-19938.19043779,0.00018187,2]
[313937989,1707844050251,-24900.0,0.00018188,2]
[313937990,1707844050271,-154.92253873,0.00019043,2]
[313937991,1707844050291,-161.66447433,0.00019043,2]
[313937992,1707844050311,-381.73015188,0.00019044,3]
[313937993,1707844050330,-7989.76732382,0.00019143,2]
[313937994,1707844050350,-1435.25522947,0.00019144,2]
[313937995,1707844050371,-907.14192831,0.00019144,2]
[313937996,1707844050391,-981.63485637,0.00019145,2]
[313937997,1707844050411,-5282.95746006,0.00019145,2]
[313937998,1707844050431,-1747.38022649,0.00019145,2]
[313937999,1707844050451,-1482.67856324,0.00019145,2]
[313938006,1707844121937,-2730.60663463,0.00017422,2]
[313938007,1707844121958,-524.12099698,0.00017422,2]
[313938008,1707844121978,-537.82724361,0.00017422,2]
[313938009,1707844121998,-296.0451629,0.00017422,2]
[313938010,1707844122019,-652.1152959,0.00017423,2]
[313938011,1707844122052,-1588.23318982,0.00017423,2]
[313938012,1707844122077,-129.05147616,0.00017423,3]
[313938023,1707844173097,-6146.70626066,0.0001732,2]
[313938024,1707844173117,-454.78953434,0.0001742,2]
[313938025,1707844173136,-294.82619206,0.00017421,2]
[313938026,1707844173156,-1721.60202492,0.00017421,2]
[313938037,1707844208972,3000.0,0.00016423,2]
[313938103,1707844237944,-324.05064247,0.00017419,2]
[313938105,1707844237954,-330.86032515,0.00017419,2]
[313938107,1707844237963,-154.92253873,0.00017419,2]
[313938109,1707844237973,-500.0,0.0001742,2]
[313938111,1707844237982,-563.70112892,0.0001742,2]
[313938113,1707844237991,-886.86707985,0.00017421,2]
[313938115,1707844238001,-27692.6745426,0.00017421,2]
[313938118,1707844238013,-3798.33411154,0.00017421,2]
[313938136,1707844238182,-51299.20294423,0.00017421,2]
[313938137,1707844238194,-1213.33310868,0.00017421,2]
[313938139,1707844238203,-20950.86004502,0.00017422,2]
[313938141,1707844238212,-25.87106257,0.00017423,3]
[313938142,1707844238221,-22275.1636689,0.00017423,2]
[313938292,1707844239777,250.0,0.00016423,2]
[313938739,1707844245778,-500.0,0.00017418,2]
[313938741,1707844245788,-14824.03672115,0.00017423,2]
[313938743,1707844245797,-1666.498878,0.00017425,2]
[313938745,1707844245806,-200.1754723,0.00017905,2]
[313938747,1707844245815,-200.0,0.00018291,2]
[313938749,1707844245824,-212.50539003,0.00019047,2]
[313938751,1707844245833,-706.4738096,0.00019147,2]
[313938753,1707844245842,-686.8990302,0.00019319,2]
[313938755,1707844245851,-167.651264,0.00020061,2]
[313938757,1707844245860,-280.0,0.0002012,2]
[313938759,1707844245869,-1963.02059646,0.00020577,2]
[313938761,1707844245880,-3532.71501392,0.00020578,2]
[313938763,1707844245889,-169.353699,0.00020581,2]
[313938765,1707844245900,-4437.8041386,0.00020855,2]
[313938767,1707844245909,-161.5894657,0.00021882,2]
[313938769,1707844245918,-161.5894657,0.00021893,2]
[313938771,1707844245927,-277.958827,0.00021993,2]
[313938773,1707844245936,-295.1257161,0.00022,4]
[313938775,1707844245945,-391.0,0.00022132,7]
[313938777,1707844245955,-212.50539002,0.0002226,2]
[313938779,1707844245964,-167.651264,0.00022796,2]
[313938781,1707844245973,-1517.0036859,0.00022865,2]
[313938783,1707844245982,-1000.0,0.00023725,2]
[313938785,1707844245991,-1000.0,0.00023743,2]
[313938787,1707844245999,-984.6256667,0.00023745,2]
[313938789,1707844246009,-1000.0,0.00023746,2]
[313938791,1707844246018,-1000.0,0.00023756,2]
[313938793,1707844246027,-1000.0,0.00023771,2]
[313938795,1707844246039,-1000.0,0.0002382,2]
[313938797,1707844246048,-1000.0,0.00023831,2]
[313938799,1707844246058,-1000.0,0.00023834,2]
[313938801,1707844246067,-1000.0,0.00023838,2]
[313938803,1707844246077,-1000.0,0.00023858,2]
[313938805,1707844246086,-1000.0,0.00023862,2]
[313938807,1707844246097,-1000.0,0.0002389,2]
[313938809,1707844246106,-1000.0,0.00023892,2]
[313938811,1707844246116,-1000.0,0.00023898,2]
[313938813,1707844246125,-1000.0,0.00023923,2]
[313938815,1707844246134,-1000.0,0.00023929,2]
[313938817,1707844246146,-1000.0,0.00023937,2]
[313938819,1707844246155,-1000.0,0.00023948,2]
[313938821,1707844246164,-1000.0,0.00023957,2]
[313938823,1707844246173,-1000.0,0.00023959,2]
[313938825,1707844246182,-1000.0,0.00023961,2]
[313938827,1707844246191,-1000.0,0.00023965,2]
[313938829,1707844246201,-18238.52452285,0.00023999,2]
[313938831,1707844246211,-1820.38493647,0.00024066,2]
[313938833,1707844246220,-14464.50405296,0.00024066,2]
[313938835,1707844246229,-151.0,0.00024066,2]
[313938837,1707844246239,-4122.38365509,0.00024066,2]
[313938839,1707844246248,-200.0,0.00024345,7]
[313938841,1707844246257,-348.0,0.00024345,7]
[313938843,1707844246266,-212.50539002,0.00025474,2]
[313938846,1707844246276,-6305.94327902,0.00026136,2]
[313938848,1707844246285,-1666.498878,0.00026137,2]
[313938850,1707844246295,-200.0,0.00026779,15]
[313938852,1707844246304,-200.0,0.00026779,15]
[313938854,1707844246313,-368.0,0.00026779,15]
[313938856,1707844246323,-523.89008641,0.00028564,2]
[313938858,1707844246331,-212.79441474,0.00028565,2]
[313938860,1707844246341,-280.94108593,0.00028565,2]
[313938862,1707844246349,-154.98610421,0.00028566,2]
[313938863,1707844246358,-212.50539002,0.00028687,2]
[313938865,1707844246368,-1115.58268575,0.00028798,2]
[313938867,1707844246377,-504.31360481,0.00028798,2]
[313938870,1707844246388,-154.92253873,0.00029,2]
[313938872,1707844246401,-5282.95746006,0.00029144,2]
[313938874,1707844246410,-154.92253873,0.00029145,2]
[313938875,1707844246420,-151.0,0.00029147,2]
[313938878,1707844246429,-200.0,0.00029457,15]
[313938879,1707844246438,-200.0,0.00029457,15]
[313938882,1707844246448,-200.0,0.00029457,15]
[313938884,1707844246457,-200.0,0.00029457,15]
[313938886,1707844246467,-1494.46168992,0.000299,2]
[313938888,1707844246476,-7471.12,0.0002999,3]
[313938890,1707844246486,-19938.19043779,0.00029999,2]
[313938892,1707844246495,-3343.77753188,0.0003,2]
[313938894,1707844246504,-2695.58269908,0.0003,30]
[313938896,1707844246514,-722.60858067,0.00030428,4]
[313938898,1707844246524,-876.16258567,0.00030429,4]
[313938900,1707844246533,-153.0,0.00031178,2]
[313938902,1707844246542,-153.0,0.00031178,2]
[313938904,1707844246552,-200.1465056,0.0003126,2]
[313938906,1707844246561,-306.0,0.0003126,2]
[313938908,1707844246570,-153.0,0.0003126,2]
[313938909,1707844246579,-153.0,0.0003126,2]
[313938911,1707844246588,-153.0,0.0003126,2]
[313938913,1707844246597,-306.0,0.00031278,2]
[313938915,1707844246606,-8679.35978985,0.0003155,5]
[313938917,1707844246616,-151.0,0.0003155,2]
[313938919,1707844246625,-200.1465056,0.000316,2]
[313938922,1707844246635,-153.0,0.000316,2]
[313938924,1707844246645,-212.50539002,0.000319,2]
[313938926,1707844246654,-152.33422684,0.00031936,2]
[313938927,1707844246663,-309.94889321,0.00031998,7]
[313938930,1707844246672,-306.80283498,0.00031998,4]
[313938931,1707844246681,-3552.45362534,0.00031998,4]
[313938933,1707844246690,-690.59003309,0.00031998,4]
[313938935,1707844246699,-481.99435085,0.00031998,4]
[313938937,1707844246708,-590.62215999,0.00031998,4]
[313938939,1707844246718,-766.41928927,0.00031998,4]
[313938941,1707844246727,-152.84086,0.00031998,2]
[313938942,1707844246736,-155.49505855,0.00031998,4]
[313938943,1707844246745,-217.0701535,0.00031998,4]
[313938944,1707844246754,-1412.10881908,0.00031998,4]
[313938945,1707844246763,-718.7552593,0.00031998,4]
[313938946,1707844246772,-155.7404259,0.00031998,4]
[313938947,1707844246781,-177.76798039,0.00031998,4]
[313938948,1707844246790,-736.9240859,0.00031998,4]
[313938949,1707844246799,-1946.65158881,0.00031998,4]
[313938950,1707844246808,-268.52915263,0.00031998,4]
[313938951,1707844246817,-295.73444606,0.00031998,4]
[313938952,1707844246826,-525.49109312,0.00031998,4]
[313938953,1707844246835,-1588.23318982,0.00031998,4]
[313938954,1707844246844,-454.78953434,0.00031998,4]
[313938956,1707844246853,-262.57230102,0.00031998,4]
[313938958,1707844246862,-168.6358621,0.00031999,4]
[313938960,1707844246872,-309.76767502,0.00031999,4]
[313938962,1707844246881,-5237.65393564,0.00031999,4]
[313938964,1707844246890,-7989.76732382,0.00031999,2]
[313938966,1707844246903,-151.0,0.00031999,2]
[313938968,1707844246912,-181567.4041734,0.00032,15]
[313938971,1707844246921,-9631.897542,0.00032,15]
[313938973,1707844246931,-150.0,0.00032,10]
[313938974,1707844246940,-2000.0,0.00032,2]
[313938976,1707844246949,-14029.64156176,0.00032,14]
[313938979,1707844246958,-300.0,0.00032,4]
[313938988,1707844247052,-1833.23081088,0.00032,2]
[313938991,1707844247065,-151.0,0.00032,2]
[313938993,1707844247074,-151.0,0.00032,2]
[313938994,1707844247083,-153.0,0.00032082,2]
[313938997,1707844247092,-306.0,0.00032082,2]
[313938998,1707844247102,-200.1465056,0.00032082,2]
[313939001,1707844247111,-153.0,0.00032082,2]
[313939002,1707844247121,-153.0,0.00032082,2]
[313939004,1707844247130,-5000.0,0.00032475,7]
[313939007,1707844247141,-153.0,0.00032603,2]
[313939008,1707844247152,-153.0,0.00032603,2]
[313939010,1707844247161,-306.0,0.00032603,2]
[313939012,1707844247170,-200.1465056,0.00032603,2]
[313939014,1707844247179,-153.0,0.00032603,2]
[313939017,1707844247189,-319.66847299,0.00032701,5]
[313939019,1707844247199,-306.0,0.00032795,2]
[313939021,1707844247208,-250.0,0.00032876,5]
[313939023,1707844247218,-153.0,0.00032904,2]
[313939024,1707844247227,-200.1465056,0.00032904,2]
[313939026,1707844247240,-153.0,0.00032904,2]
[313939028,1707844247250,-200.1465056,0.00032904,2]
[313939030,1707844247259,-153.0,0.00032904,2]
[313939032,1707844247269,-2332.0,0.00033,2]
[313939034,1707844247278,-2332.0,0.00033151,2]
[313939036,1707844247287,-766.37885908,0.00033286,30]
[313939038,1707844247296,-167.03904686,0.00033394,7]
[313939040,1707844247306,-151.0,0.00033395,2]
[313939042,1707844247315,-500.0,0.00033424,5]
[313939044,1707844247324,-2332.0,0.00033425,2]
[313939046,1707844247333,-138332.7897,0.00033484,7]
[313939048,1707844247342,-579.0,0.000335,2]
[313939050,1707844247351,-2332.0,0.00033699,2]
[313939052,1707844247361,-355.0927635,0.00033726,2]
[313939054,1707844247370,-200.1465056,0.00033726,2]
[313939056,1707844247379,-306.0,0.00033726,2]
[313939058,1707844247388,-399.484552,0.00033726,2]
[313939060,1707844247397,-153.0,0.00033726,2]
[313939062,1707844247406,-153.0,0.00033726,2]
[313939064,1707844247415,-750.0,0.00033972,5]
[313939066,1707844247424,-2332.0,0.00033973,2]
[313939068,1707844247433,-2332.0,0.00034247,2]
[313939070,1707844247442,-288.0,0.000344,30]
[313939072,1707844247451,-3407.48103836,0.000345,30]
[313939074,1707844247460,-1000.0,0.0003452,5]
[313939076,1707844247469,-2332.0,0.00034521,2]
[313939078,1707844247479,-153.0,0.00034548,2]
[313939080,1707844247488,-153.0,0.00034548,2]
[313939082,1707844247497,-153.0,0.00034548,2]
[313939084,1707844247507,-153.0,0.00034548,2]
[313939086,1707844247516,-152.353166,0.00034548,2]
[313939088,1707844247525,-1494.46168992,0.000349,2]
[313939090,1707844247534,-1533.16044773,0.00035,4]
[313939092,1707844247543,-154.8915759,0.00035,4]
[313939094,1707844247552,-1435.27418243,0.00035,4]
[313939096,1707844247561,-1000.0,0.00035,35]
[313939098,1707844247571,-592.91812692,0.00035,2]
[313939100,1707844247580,-5058.54188615,0.00035,15]
[313939102,1707844247590,-5106.02846642,0.00035,2]
[313939104,1707844247600,-500.13137461,0.00035,7]
[313939106,1707844247609,-3933.83541145,0.00035,2]
[313939108,1707844247618,-10188.56654547,0.00035,2]
[313939110,1707844247627,-151.0,0.00035,2]
[313939112,1707844247636,-1310.93040657,0.00035068,5]
[313939114,1707844247645,-151.0,0.00035295,2]
[313939116,1707844247654,-153.0,0.00035338,2]
[313939118,1707844247664,-306.0,0.00035357,2]
[313939120,1707844247673,-151.0,0.00035395,2]
[313939122,1707844247682,-1609.698947,0.0003548,7]
[313939124,1707844247692,-25641.7908,0.00035484,30]
[313939126,1707844247701,-1000.0,0.000355,7]
[313939128,1707844247710,-1207.759157,0.000355,7]
[313939130,1707844247719,-1000.0,0.0003552,7]
[313939132,1707844247728,-1000.0,0.0003552,7]
[313939133,1707844247737,-1000.0,0.0003554,7]
[313939135,1707844247746,-1000.0,0.0003554,7]
[313939137,1707844247755,-1000.0,0.0003556,7]
[313939139,1707844247764,-1000.0,0.0003556,7]
[313939141,1707844247773,-1000.0,0.0003558,7]
[313939143,1707844247782,-1000.0,0.0003558,7]
[313939145,1707844247791,-200.0,0.000356,7]
[313939147,1707844247800,-1000.0,0.000356,7]
[313939149,1707844247809,-1000.0,0.000356,7]
[313939151,1707844247819,-232.52505957,0.00035614,4]
[313939153,1707844247828,-523.69004645,0.00035616,14]
[313939155,1707844247838,-500.0,0.00035616,14]
[313939157,1707844247847,-500.0,0.00035616,7]
[313939159,1707844247856,-500.0,0.00035616,7]
[313939161,1707844247866,-500.0,0.00035616,14]
[313939163,1707844247875,-151.20673677,0.00035616,14]
[313939165,1707844247884,-500.0,0.00035616,14]
[313939167,1707844247893,-531.10596517,0.00035616,14]
[313939169,1707844247901,-500.0,0.00035616,14]
[313939171,1707844247910,-500.0,0.00035616,14]
[313939173,1707844247918,-500.0,0.00035616,14]
[313939175,1707844247927,-500.0,0.00035616,14]
[313939177,1707844247936,-500.0,0.00035616,14]
[313939179,1707844247944,-224.61367625,0.00035616,14]
[313939181,1707844247953,-393.17062915,0.00035616,14]
[313939183,1707844247962,-500.0,0.00035616,14]
[313939184,1707844247971,-500.0,0.00035616,14]
[313939187,1707844247980,-500.0,0.00035616,14]
[313939188,1707844247989,-500.0,0.00035616,14]
[313939190,1707844247998,-500.0,0.00035616,14]
[313939192,1707844248008,-500.0,0.00035616,14]
[313939195,1707844248017,-500.0,0.00035616,2]
[313939196,1707844248027,-500.0,0.00035616,2]
[313939198,1707844248044,-500.0,0.00035616,2]
[313939200,1707844248054,-457.84139484,0.00035616,2]
[313939202,1707844248066,-500.0,0.00035616,14]
[313939204,1707844248075,-500.0,0.00035616,14]
[313939207,1707844248087,-500.0,0.00035616,14]
[313939209,1707844248096,-500.0,0.00035616,14]
[313939211,1707844248109,-500.0,0.00035616,14]
[313939213,1707844248118,-500.0,0.00035616,14]
[313939215,1707844248127,-500.0,0.00035616,14]
[313939217,1707844248136,-520.9995914,0.00035616,14]
[313939219,1707844248147,-500.0,0.00035616,14]
[313939221,1707844248155,-542.84136117,0.00035616,14]
[313939223,1707844248165,-500.0,0.00035616,2]
[313939225,1707844248176,-500.0,0.00035616,2]
[313939227,1707844248186,-300.49,0.00035616,2]
[313939229,1707844248195,-500.0,0.00035616,14]
[313939231,1707844248204,-506.66694934,0.00035616,14]
[313939233,1707844248213,-505.56859389,0.00035616,14]
[313939235,1707844248222,-500.0,0.00035616,14]
[313939236,1707844248230,-225.97810383,0.00035616,14]
[313939238,1707844248240,-500.0,0.00035616,14]
[313939240,1707844248249,-500.0,0.00035616,14]
[313939242,1707844248258,-500.0,0.00035616,14]
[313939244,1707844248267,-500.0,0.00035616,14]
[313939246,1707844248276,-500.0,0.00035616,14]
[313939248,1707844248285,-500.0,0.00035616,14]
[313939250,1707844248295,-585.13562085,0.00035616,14]
[313939252,1707844248304,-500.0,0.00035616,14]
[313939254,1707844248314,-500.0,0.00035616,14]
[313939256,1707844248323,-196.18,0.00035616,14]
[313939258,1707844248333,-500.0,0.00035616,14]
[313939260,1707844248342,-500.0,0.00035616,14]
[313939262,1707844248351,-500.0,0.00035616,14]
[313939264,1707844248361,-596.36,0.00035616,14]
[313939266,1707844248371,-503.61477195,0.00035616,2]
[313939268,1707844248380,-165.75440313,0.00035616,14]
[313939270,1707844248389,-500.0,0.00035616,14]
[313939272,1707844248402,-500.0,0.00035616,14]
[313939274,1707844248411,-500.0,0.00035616,14]
[313939276,1707844248420,-500.0,0.00035616,14]
[313939278,1707844248429,-500.0,0.00035616,14]